Cogmind - Beta 16 @@@ ROGUE MODE // 2025.11.07 @ 12:07:34 Player: H3-MLN Result: Destroyed 0b10! Performance ------------- Evolutions (9) 4500 Regions Visited (15) 3000 Robots Destroyed (46) 230 Value Destroyed (1173) 1173 Prototype IDs (16) 320 Alien Tech Used (2) 400 Bonus (20119) 20119 TOTAL SCORE: 29742 Bonus ------- Follower Combat Kills 330 Registered with UFD 300 Met Optimus in HQ 500 Used Core Reset Matrix 3000 Met Sigix 2000 Escaped with Sigix 10000 Win 3000 Win Speed 1334 Friendly Fire -345 Cogmind --------- Core Integrity 1362/1600 Matter 43/300 Energy 345/350 System Corruption 0% Temperature Cool (10) Movement Hovering (50) Location Tau Ceti IV Orbit Parts ------- > --- POWER (2) -------- Backup Power VII Quantum Reactor > --- PROPULSION (6) --- Gyrokinetic Inverter Improved Antigrav System Combat Antigrav System Combat Antigrav System Combat Antigrav System Cooled Linear Gravjet > --- UTILITY (14) ----- Advanced Power Amplifier Advanced Power Amplifier Structural Scanner Machine Analyzer Advanced Sensor Array Advanced Signal Interpreter IFF Parser Terrain Scanner Terrain Scan Processor Improved Propulsion Shielding Improved Utility Shielding Makeshift Hacking Suite Makeshift Hacking Suite Advanced Corruption Screen > --- WEAPON (3) ------- Dispersion Rifle LU-1G1's Laser Shovel Phasing Sabre > --- INVENTORY (5) ---- CPS Tube (2) Sigix Containment Pod Sigix Containment Pod Peak State ------------ > --- POWER ------------ Backup Power VII Quantum Reactor > --- PROPULSION ------- Gyrokinetic Inverter Improved Antigrav System Combat Antigrav System Combat Antigrav System Combat Antigrav System Cooled Linear Gravjet > --- UTILITY ---------- Advanced Power Amplifier Advanced Power Amplifier Structural Scanner Machine Analyzer Advanced Sensor Array Advanced Signal Interpreter IFF Parser Terrain Scanner Terrain Scan Processor Improved Propulsion Shielding Improved Utility Shielding Makeshift Hacking Suite Makeshift Hacking Suite Advanced Corruption Screen > --- WEAPON ----------- Dispersion Rifle LU-1G1's Laser Shovel Phasing Sabre > --- INVENTORY -------- CPS Tube Sigix Containment Pod Sigix Containment Pod [Rating: 145] Favorites ----------- Power Backup Power I Engine Backup Power I Power Core Backup Power VII Reactor Quantum Reactor Propulsion Cesium-ion Thruster Treads Advanced Heavy Siege Treads Leg Improved Aluminum Leg Wheel Compact Wheel Hover Unit Linear Gravjet Flight Unit Cesium-ion Thruster Utility Hacking Suite Device Advanced Power Amplifier Storage Small Storage Unit Processor Improved Signal Interpreter Hackware Hacking Suite Protection Improved Light Armor Plating Weapon Phasing Sabre Energy Gun Dispersion Rifle Energy Cannon EM Pulse Cannon Ballistic Gun Light Assault Rifle Launcher Rocket Array Special Weapon Remote Datajack Impact Weapon Flail Slashing Weapon Phasing Sabre Build | -11 -10 -9 -8 -7 -7 -7 -7 -5 -4 -4 -4 -3 -3 -2 -1 ------- Run | Yrd Mat Mat Mat Fac Sto Rec Scr Fac Fac Upp Upp Res Qua Res Acc Slots Evolved 18 | . . 2 2 2 . . . 4 2 . . 2 . 2 2 Power 1 | . . . . . . . . 1 . . . . . . . Propulsion 4 | . . . 1 . . . . 2 1 . . . . . . Utility 12 | . . 2 1 2 . . . 1 1 . . 1 . 2 2 Weapon 1 | . . . . . . . . . . . . 1 . . . Parts Attached 106 | 6 1 7 11 5 7 . 14 8 1 4 2 5 8 13 14 Power 9 | 1 . 1 . 2 . . . 2 . 1 . 1 . 1 . Engine 5 | 1 . 1 . 2 . . . 1 . . . . . . . Core 2 | . . . . . . . . . . 1 . 1 . . . Reactor 2 | . . . . . . . . 1 . . . . . 1 . Propulsion 30 | 2 . 3 4 . 1 . 1 4 1 1 . 1 1 4 7 Treads 1 | . . . . . . . . . . . . . . . 1 Leg 1 | . . 1 . . . . . . . . . . . . . Wheel 3 | 2 . . . . . . . . . . . . . . 1 Hover 15 | . . . . . . . . 4 1 . . . 1 4 5 Flight 10 | . . 2 4 . 1 . 1 . . 1 . 1 . . . Utility 46 | 1 1 1 5 2 4 . 8 2 . 2 . 2 5 7 6 Device 20 | . 1 . 2 1 1 . 3 1 . . . 1 1 6 3 Storage 2 | 1 . . . . . . . . . 1 . . . . . Processor 10 | . . . 2 . 2 . . 1 . 1 . . 3 . 1 Hackware 8 | . . 1 1 1 . . 5 . . . . . . . . Protection 6 | . . . . . 1 . . . . . . 1 1 1 2 Artifact . | . . . . . . . . . . . . . . . . Weapon 21 | 2 . 2 2 1 2 . 5 . . . 2 1 2 1 1 Energy Gun 2 | 1 . . . . . . . . . . . . . . 1 Energy Cannon 1 | . . . . . 1 . . . . . . . . . . Ballistic Gun 3 | 1 . 1 . . . . 1 . . . . . . . . Ballistic Cannon . | . . . . . . . . . . . . . . . . Launcher 1 | . . . . . 1 . . . . . . . . . . Special Weapon 6 | . . . . . . . 3 . . . . . 2 1 . Impact Weapon 1 | . . 1 . . . . . . . . . . . . . Slashing Weapon 7 | . . . 2 1 . . 1 . . . 2 1 . . . Piercing Weapon . | . . . . . . . . . . . . . . . . Special Melee Weapon . | . . . . . . . . . . . . . . . . Unidentified Prototypes 7 | . . 1 . 1 1 . 1 . . . . . 2 1 . Corrupted Parts 1 | . . . . . . . 1 . . . . . . . . System Corruption 4 | . . . . . . . 4 . . . . . . . . Parts Lost 26 | . . 2 1 . 3 . . 2 . 6 4 . 3 3 2 Power 5 | . . . 1 . 1 . . 1 . 2 . . . . . Propulsion 9 | . . 1 . . . . . 1 . 1 2 . 2 1 1 Utility 9 | . . . . . 2 . . . . 2 2 . 1 1 1 Weapon 3 | . . 1 . . . . . . . 1 . . . 1 . Highest Loss Streak 4 | . . 1 1 . 1 . . 2 . 4 4 . 1 3 2 To Critical Strikes . | . . . . . . . . . . . . . . . . Average Backups 3 | . 1 2 3 2 3 4 3 4 5 4 4 4 3 3 3 Power . | . 1 . . . . . . . . . . . . . . Propulsion . | . . . . . . . . . . . . . . . . Utility . | . . . . . . . . . 1 . . . . . . Weapon 1 | . . . 2 2 2 3 2 1 1 . 1 1 1 . . Tool/Special . | . . . . . . . . . . . . . . . . Unused Backups 8 | . . . 1 . 1 1 2 1 . . . . 2 . . Power . | . . . . . . . . . . . . . . . . Propulsion . | . . . . . . . . . . . . . . . . Utility 2 | . . . . . . . . 1 . . . . 1 . . Weapon 5 | . . . 1 . . 1 2 . . . . . 1 . . Tool/Special 1 | . . . . . 1 . . . . . . . . . . Average Slot Usage (%) 84 | . 97 74 83 80 89 92 90 86 80 72 75 58 70 82 89 Engine 5 | . 14 10 9 4 7 7 7 5 10 . . . . . . Core 1 | . . . . . . . . . . 4 4 . 3 3 4 Wheel 1 | . 28 7 . . . . . . . . . . . . . Hover 5 | . . . . . . . . 16 22 23 15 4 7 17 19 Flight 15 | . . 9 27 23 23 23 22 7 . . 5 8 7 2 . Device 8 | . 12 11 13 11 9 . 3 7 5 9 7 4 4 10 22 Processor 9 | . . . 11 15 15 23 5 2 5 5 10 9 14 19 17 Hackware 21 | . . 7 13 16 23 23 34 29 26 23 21 14 12 8 8 Protection 3 | . . . . . 3 7 3 5 5 . . 2 6 7 5 Energy Gun 1 | . 14 7 . . . . . . . . . . . . 3 Special Weapon 3 | . . . . . . . 9 . . . . . . 4 . Slashing Weapon 4 | . . . 8 7 6 7 2 5 5 . 5 13 10 4 4 Peak Build Rating 145 | 6 7 12 34 42 43 42 55 78 69 74 81 80 100 140 145 Average Rating 55 | 4 6 9 26 37 41 41 39 68 67 63 69 65 85 124 131 On Entrance 47 | . 6 7 11 33 42 42 42 49 62 69 68 45 80 84 121 Avg Prop Armor Cover (%) 9 | . . 7 . 9 . . . 4 10 16 6 6 9 6 9 Naked Turns . | . . . . . . . . . . . . . . . . Heaviest Build 52 | 13 14 14 10 12 14 9 21 26 13 13 16 26 25 52 51 Greatest Support 85 | 32 32 32 16 16 16 16 16 36 36 19 27 25 25 57 85 Greatest Overweight (x) 3 | . . 3 . . . . 1 1 . . . 1 . . 1 Average Overweight (x) . | . . . . . . . . . . . . . . . . Largest Inventory Capacity 8 | 8 8 8 5 5 5 5 5 5 5 5 5 5 5 5 5 Average Capacity 5 | 6 8 6 5 5 5 5 5 5 5 5 5 5 5 5 5 Most Carried 5 | 1 2 4 5 5 5 5 5 5 5 5 5 5 5 5 5 Average Carried 4 | . 1 2 4 4 4 4 4 4 5 4 4 4 4 4 4 Final Capacity 8 | 8 8 5 5 5 5 5 5 5 5 5 5 5 5 5 5 Final Carried 5 | 1 2 4 5 4 5 5 5 5 5 4 5 5 5 5 5 Class Distribution -------------------- 41% | Hacker-Sprinter 17% | Hacker-Mutant 11% | Derelict-Mutant 6% | Hacker-Scout 6% | Mutant 5% | Scavenger-Scout 4% | Sprinter 3% | Wizard-Sprinter Dominant Class ---------------- Mutant | -10/Materials Sprinter | -9/Materials Sprinter | -8/Materials Hacker-Scout | -7/Factory Hacker-Sprinter | -7/Storage Hacker-Sprinter | -7/Recycling Hacker-Sprinter | -7/Scraptown Hacker-Sprinter | -5/Factory Hacker-Sprinter | -4/Factory Hacker-Mutant | -4/Upper Caves Hacker-Mutant | -4/Upper Caves Derelict-Mutant | -3/Research Derelict-Mutant | -3/Quarantine Hacker-Mutant | -2/Research Scavenger-Scout | -1/Access Resources | -11 -10 -9 -8 -7 -7 -7 -7 -5 -4 -4 -4 -3 -3 -2 -1 ----------- Run | Yrd Mat Mat Mat Fac Sto Rec Scr Fac Fac Upp Upp Res Qua Res Acc Matter Collected 1603 | 263 19 99 110 60 90 10 544 70 . 75 . 53 129 4 77 Remotely . | . . . . . . . . . . . . . . . . Salvage Created 1697 | 38 87 74 141 228 488 99 . 150 . 72 . 73 30 . 217 Parts 92 | 3 6 1 7 8 20 2 . 14 . 6 . 5 . . 20 Haulers Intercepted 1 | . . . 1 . . . . . . . . . . . . Recyclers Shooed 1 | . . . . . . 1 . . . . . . . . . Parts Field Recycled 23 | . . . . . . . 23 . . . . . . . . Retrieved Matter 470 | . . . . . . . 470 . . . . . . . . Parts Self-Destructed 5 | . . . . . . . . . . 5 . . . . . Prevented . | . . . . . . . . . . . . . . . . Parts Restored . | . . . . . . . . . . . . . . . . Kills | -11 -10 -9 -8 -7 -7 -7 -7 -5 -4 -4 -4 -3 -3 -2 -1 ------- Run | Yrd Mat Mat Mat Fac Sto Rec Scr Fac Fac Upp Upp Res Qua Res Acc Combat Hostiles Destroyed 18 | . 2 1 1 1 5 . . 3 . 3 . . . . 2 Melee 14 | . . . 1 1 5 . . 3 . 2 . . . . 2 Guns 3 | . 2 . . . . . . . . 1 . . . . . AOE 1 | . . 1 . . . . . . . . . . . . . Classes Destroyed 13 | 1 2 2 3 2 1 . . 1 . . . . . . 1 Worker 6 | . . . . 3 . . . . . . . 1 . . 2 Builder 6 | . . 1 . . 1 . . 1 . . . 2 . . 1 Tunneler 2 | 2 . . . . . . . . . . . . . . . Hauler 1 | . . . 1 . . . . . . . . . . . . Recycler 3 | . . . . . 2 1 . . . . . . . . . Mechanic 2 | . . . . 1 . . . 1 . . . . . . . Operator 3 | . 1 . 1 1 . . . . . . . . . . . Watcher 5 | . . . 1 1 1 . . 1 . . . . 1 . . Swarmer 6 | . . . . . . . . 3 . 3 . . . . . Grunt 6 | . 2 . . 1 3 . . . . . . . . . . Sentry 2 | . . 1 . . 1 . . . . . . . . . . Hunter 2 | . . . 1 . 1 . . . . . . . . . . Programmer 2 | . . . . . . . . . . . . . . . 2 Best Kill Streak 4 | 2 3 1 2 2 3 1 . 4 . 3 . 1 1 . 2 Combat Bots Only 3 | . 2 1 1 1 3 . . 3 . 3 . . . . 1 Max Kills in Single Turn 1 | 1 1 1 1 1 1 1 . 1 . 1 . 1 1 . 1 Gunslinging . | . . . . . . . . . . . . . . . . Exploded 1 | . . 1 . . . . . . . . . . . . . Melee 1 | . . . 1 1 1 . . 1 . 1 . . . . 1 Uniques/NPCs Destroyed . | . . . . . . . . . . . . . . . . Combat | -11 -10 -9 -8 -7 -7 -7 -7 -5 -4 -4 -4 -3 -3 -2 -1 -------- Run | Yrd Mat Mat Mat Fac Sto Rec Scr Fac Fac Upp Upp Res Qua Res Acc Hostile Shots Fired 312 | . 8 42 11 6 36 . 4 25 . 41 27 37 20 6 49 Missed 129 | . 3 21 3 4 18 . 3 5 . 15 15 22 12 2 6 Hits 183 | . 5 21 8 2 18 . 1 20 . 26 12 15 8 4 43 Melee 1 | . . . . . . . . . . . 1 . . . . Projectile 182 | . 5 21 8 2 18 . 1 20 . 26 11 15 8 4 43 Critical Strikes 10 | . . . 2 . . . . . . 1 . 1 1 . 5 Actively Blocked 1 | . . . . . . . . . . . . . . . 1 Part Disruptions 1 | . . . . . . . . . . . . . . . 1 Actively Blocked 1 | . . . . . . . . . . . . . . . 1 Damage Taken 3448 | . 52 265 131 29 222 . 35 392 . 380 221 193 329 195 1004 Core 663 | . 11 48 25 . 40 . 35 59 . 18 30 45 91 23 238 Absorbed by Shields . | . . . . . . . . . . . . . . . . Redirected to Shielding 191 | . . . . . . . . . . . . . . 7 184 Regen/Repaired (Parts) 91 | . . . . . 32 . . . . . . . 59 . . Core Remaining (%) 92 | 100 95 88 95 . . . 89 94 . . 95 . 89 98 85 Volleys Fired 28 | 3 9 7 . . 1 . 2 . . 3 . . 2 1 . Largest 2 | 2 2 2 . . 1 . 1 . . 1 . . 1 1 . Hottest 63 | 60 60 60 . . 63 . 5 . . 38 . . 60 60 . Shots Fired 47 | 6 18 14 . . 1 . 2 . . 3 . . 2 1 . Gun 41 | 6 18 14 . . . . . . . 3 . . . . . Cannon 1 | . . . . . 1 . . . . . . . . . . Launcher . | . . . . . . . . . . . . . . . . Special 5 | . . . . . . . 2 . . . . . 2 1 . Kinetic 22 | 3 9 7 . . . . . . . 3 . . . . . Thermal 3 | . . . . . . . . . . . . . 2 1 . Explosive . | . . . . . . . . . . . . . . . . Electromagnetic 20 | 3 9 7 . . 1 . . . . . . . . . . Robot Hit Streak 5 | 4 5 2 . . . . 2 . . 3 . . . . . Robot Miss Streak 4 | . 4 4 . . . . . . . 1 . . . . . Penetration Max . | . . . . . . . . . . . . . . . . Secondary Targets 1 | . 1 . . . . . . . . . . . . . . Max Gunslinging Chain 1 | . 1 . . . . . . . . . . . . . . Shots Hit Robots 102 | 4 10 6 11 12 14 2 4 9 . 7 . 3 4 . 16 Core Hits 41 | 3 5 1 3 5 7 . . 4 . 3 . 1 2 . 7 Critical Kills . | . . . . . . . . . . . . . . . . Critical Parts Destroyed . | . . . . . . . . . . . . . . . . Critical Strikes 8 | . . 1 . . 2 . . 2 . . . . 1 . 2 Corrupt 1 | . . 1 . . . . . . . . . . . . . Sever 7 | . . . . . 2 . . 2 . . . . 1 . 2 Melee Attacks 166 | . . 1 19 15 30 2 6 13 . 6 . 23 16 8 27 Impact 1 | . . 1 . . . . . . . . . . . . . Slashing 165 | . . . 19 15 30 2 6 13 . 6 . 23 16 8 27 Piercing . | . . . . . . . . . . . . . . . . Sneak Attacks 25 | . . 1 3 5 4 2 1 2 . . . 3 . . 4 Combat Hostiles 3 | . . . 1 1 1 . . . . . . . . . . Follow-up Attacks 1 | . . . . . . . . . . . . . 1 . . Damage Inflicted 5967 | 45 116 208 840 1045 998 214 169 619 . 361 1 256 145 71 879 Guns 280 | 45 116 56 . . . . . . . 63 . . . . . Cannons . | . . . . . . . . . . . . . . . . Explosions 44 | . . 44 . . . . . . . . . . . . . Melee 5570 | . . 108 840 1045 998 214 169 619 . 298 . 256 144 . 879 Ramming 73 | . . . . . . . . . . . 1 . 1 71 . Kinetic 127 | 7 47 10 . . . . . . . 63 . . . . . Thermal 44 | . . 44 . . . . . . . . . . . . . Explosive . | . . . . . . . . . . . . . . . . Electromagnetic 153 | 38 69 46 . . . . . . . . . . . . . Impact 108 | . . 108 . . . . . . . . . . . . . Slashing 5462 | . . . 840 1045 998 214 169 619 . 298 . 256 144 . 879 Piercing . | . . . . . . . . . . . . . . . . Highest Corruption 4 | . . 1 . . . . 4 . . . . . . . . Average Corruption 1 | . . 1 . . . . 4 . . . . . . . . Corruption Purged . | . . . . . . . . . . . . . . . . Corruption Blocked 14 | . . . . . . . . . . . . . . 2 12 Overload Shots . | . . . . . . . . . . . . . . . . Overflow Damage 1110 | . . 68 143 328 168 134 . 133 . 9 . 90 . . 37 Projectiles . | . . . . . . . . . . . . . . . . Explosions . | . . . . . . . . . . . . . . . . Melee 1110 | . . 68 143 328 168 134 . 133 . 9 . 90 . . 37 Knockbacks 1 | . . 1 . . . . . . . . . . . . . Impact 1 | . . 1 . . . . . . . . . . . . . Kinetic . | . . . . . . . . . . . . . . . . Secondary . | . . . . . . . . . . . . . . . . Self-Inflicted Damage 35 | . . . . . . . . . . . . . . 35 . Shots . | . . . . . . . . . . . . . . . . Rammed 5 | . . . . . . . . . . . 1 . 1 3 . Targets Rammed 5 | . . . . . . . . . . . 1 . 1 3 . Kicked . | . . . . . . . . . . . . . . . . Crushed . | . . . . . . . . . . . . . . . . Highest Temperature 64 | 20 64 28 . . 16 . . 8 7 12 . . . 16 2 Average Temperature 11 | 15 24 16 . . 12 . . 3 6 8 . . . 7 2 Received Heat Transfer 216 | . 30 69 36 18 45 . . . . . 18 . . . . Siege Activations . | . . . . . . . . . . . . . . . . Martial Activations . | . . . . . . . . . . . . . . . . Shielding Activations . | . . . . . . . . . . . . . . . . Robots Disrupted . | . . . . . . . . . . . . . . . . Combat Hostiles . | . . . . . . . . . . . . . . . . Robots Corrupted 1 | . . 1 . . . . . . . . . . . . . Combat Hostiles . | . . . . . . . . . . . . . . . . Parts Fried 1 | . . 1 . . . . . . . . . . . . . Impact Corruptions 3 | . . 3 . . . . . . . . . . . . . Robots Melted . | . . . . . . . . . . . . . . . . Combat Hostiles . | . . . . . . . . . . . . . . . . Parts Melted . | . . . . . . . . . . . . . . . . Heat Transferred 50 | . . 50 . . . . . . . . . . . . . Parts Sabotaged 4 | . . . . . . . . . . . 4 . . . . Parts Stolen . | . . . . . . . . . . . . . . . . Parts Stripped . | . . . . . . . . . . . . . . . . Power Chain Reactions 1 | . . 1 . . . . . . . . . . . . . Alert | -11 -10 -9 -8 -7 -7 -7 -7 -5 -4 -4 -4 -3 -3 -2 -1 ------- Run | Yrd Mat Mat Mat Fac Sto Rec Scr Fac Fac Upp Upp Res Qua Res Acc Maximum Alert Level . | . . . . . . . . . . . . . . . . Low Security (%) 100 | 100 100 100 100 100 100 100 . 100 100 . . 100 100 100 100 Level 1 . | . . . . . . . . . . . . . . . . Level 2 . | . . . . . . . . . . . . . . . . Level 3 . | . . . . . . . . . . . . . . . . Level 4 . | . . . . . . . . . . . . . . . . Level 5 . | . . . . . . . . . . . . . . . . High Security . | . . . . . . . . . . . . . . . . Max Security . | . . . . . . . . . . . . . . . . Peak Influence 141 | 10 69 70 68 65 129 141 . 92 39 . . 44 43 33 51 Initial 55 | . . 20 25 25 . 55 . . 39 . . 6 18 12 . Average 26 | 1 24 21 36 28 57 99 . 25 38 . . 13 8 8 14 Influence Increases 1770 | 10 89 145 143 194 310 106 . 146 . 120 30 119 131 78 149 Destroy 0b10 Robot/C 400 | . 40 20 20 60 100 . . 60 . 60 . . . . 40 Destroy 0b10 Robot/NC 140 | 10 5 5 15 30 20 5 . 15 . . . 15 5 . 15 Destroy Leader 112 | . 10 10 14 22 32 . . 12 . . . . 2 . 10 Allied During Kill 12 | . . . . 12 . . . . . . . . . . . Successful Hack 282 | . 19 14 14 40 35 11 . 10 . . . 48 31 39 21 Select Force Hacks 90 | . . . . . . 90 . . . . . . . . . Disable Machine 120 | . 15 . . . 45 . . . . . . 15 30 . 15 Destroy Structure 119 | . . 6 5 . 3 . . 4 . . . 26 18 39 18 Partial Spotted 75 | . . . 15 15 . . . . . . . . 45 . . Lose Combat Pursuer 420 | . . 90 60 15 75 . . 45 . 60 30 15 . . 30 Influence Decreases 1729 | 10 40 134 145 252 166 139 111 64 53 149 20 95 142 101 108 Entered New Map 382 | . . 29 35 33 . 89 111 . 43 11 . 4 16 11 . Time Decay 1047 | 10 40 85 100 104 136 50 . 44 10 78 10 91 106 75 108 Lost Part 185 | . . 20 10 . 30 . . 20 . 60 10 . 20 15 . Lost Ally 60 | . . . . 60 . . . . . . . . . . . Purge Threat 55 | . . . . 55 . . . . . . . . . . . Squads Dispatched 17 | . 1 . 3 3 4 . . 1 . . 1 . 1 2 1 Investigation 9 | . . . 1 3 3 . . 1 . . . . 1 . . Extermination 3 | . . . . . 1 . . . . . . . . 1 1 Reinforcement 4 | . 1 . 2 . . . . . . . . . . 1 . Assault 1 | . . . . . . . . . . . 1 . . . . Garrison . | . . . . . . . . . . . . . . . . Intercept . | . . . . . . . . . . . . . . . . Searches Triggered . | . . . . . . . . . . . . . . . . Construction Impeded . | . . . . . . . . . . . . . . . . Haulers Reinforced . | . . . . . . . . . . . . . . . . Active Scanning Responses . | . . . . . . . . . . . . . . . . Cargo Convoy Interrupts . | . . . . . . . . . . . . . . . . Stealth | -11 -10 -9 -8 -7 -7 -7 -7 -5 -4 -4 -4 -3 -3 -2 -1 --------- Run | Yrd Mat Mat Mat Fac Sto Rec Scr Fac Fac Upp Upp Res Qua Res Acc Distress Signals 11 | . . 1 1 2 2 1 . 1 . . . 2 1 . . Communications Jammed . | . . . . . . . . . . . . . . . . Distress Signals . | . . . . . . . . . . . . . . . . Times Spotted 134 | . 4 17 12 12 11 1 12 14 . 7 15 9 9 4 7 Peak Tracking Total 14 | . 3 14 5 4 3 1 4 7 . 4 11 9 8 4 5 Tactical Retreats 18 | . . 3 3 1 2 . . 2 . 4 1 1 . . 1 Traps | -11 -10 -9 -8 -7 -7 -7 -7 -5 -4 -4 -4 -3 -3 -2 -1 ------- Run | Yrd Mat Mat Mat Fac Sto Rec Scr Fac Fac Upp Upp Res Qua Res Acc Traps Triggered 2 | . . 1 . . . . . 1 . . . . . . . Indirectly . | . . . . . . . . . . . . . . . . Trap Hack Attempts . | . . . . . . . . . . . . . . . . Triggered . | . . . . . . . . . . . . . . . . Disarmed . | . . . . . . . . . . . . . . . . Reprogrammed . | . . . . . . . . . . . . . . . . Reused . | . . . . . . . . . . . . . . . . Traps Extracted . | . . . . . . . . . . . . . . . . Installed . | . . . . . . . . . . . . . . . . Triggered . | . . . . . . . . . . . . . . . . Machines | -11 -10 -9 -8 -7 -7 -7 -7 -5 -4 -4 -4 -3 -3 -2 -1 ---------- Run | Yrd Mat Mat Mat Fac Sto Rec Scr Fac Fac Upp Upp Res Qua Res Acc Machines Disabled 12 | . 1 . . . 3 . 4 . . . . 1 2 . 1 Max in Single Turn 1 | . 1 . . . 1 . 1 . . . . 1 1 . 1 Garrison Access 1 | . . . . . . . . . . . . . 1 . . Machines Repaired . | . . . . . . . . . . . . . . . . Machines Dismantled . | . . . . . . . . . . . . . . . . Machines Sabotaged . | . . . . . . . . . . . . . . . . Overloaded Fab Kills . | . . . . . . . . . . . . . . . . Hacking | -11 -10 -9 -8 -7 -7 -7 -7 -5 -4 -4 -4 -3 -3 -2 -1 --------- Run | Yrd Mat Mat Mat Fac Sto Rec Scr Fac Fac Upp Upp Res Qua Res Acc Machines Accessed 48 | . 2 3 5 5 5 6 1 2 . . 1 3 10 3 2 Terminals 30 | . 2 2 4 3 4 3 . 1 . . . 2 6 2 1 Fabricators 1 | . . . . 1 . . . . . . . . . . . Repair Stations 3 | . . . . . 1 . . . . . . . 1 1 . Recycling Units 4 | . . 1 . . . 3 . . . . . . . . . Scanalyzers 6 | . . . 1 1 . . . 1 . . . 1 2 . . Garrison Access 2 | . . . . . . . . . . . . . 1 . 1 Total Hacks 143 | . 8 6 18 16 23 14 6 5 . . 1 13 25 5 3 Successful 89 | . 4 3 11 7 14 14 6 4 . . 1 7 15 2 1 Failed 52 | . 3 3 7 9 9 . . 1 . . . 6 9 3 2 Catastrophic 3 | . . 1 . 1 . . . . . . . . . 1 . Database Lockouts 2 | . 1 . . . . . . . . . . . 1 . . Manual 44 | . 4 . 5 6 8 8 . 2 . . . 4 6 1 . Terminals 96 | . 8 3 14 10 21 8 . 2 . . . 11 14 4 1 Fabricators 3 | . . . . 3 . . . . . . . . . . . Repair Stations 7 | . . . . . 2 . . . . . . . 4 1 . Recycling Units 9 | . . 3 . . . 6 . . . . . . . . . Scanalyzers 17 | . . . 4 3 . . . 3 . . . 2 5 . . Garrison Access 4 | . . . . . . . . . . . . . 2 . 2 Terminal Hacks 50 | . 3 1 6 3 11 3 6 1 . . 1 6 7 1 1 Record 1 | . . . . . . . . . . . . . 1 . . Part Schematic 11 | . 1 . 1 . 4 2 . . . . . 1 2 . . Robot Analysis 7 | . . . . . . 1 6 . . . . . . . . Prototype ID Bank 1 | . . . . . 1 . . . . . . . . . . Open Door 3 | . . . . . . . . . . . 1 . 1 . 1 Level Access Points 1 | . . . . . . . . . . . . . 1 . . Branch Access Points 4 | . . . 1 1 1 . . . . . . 1 . . . Emergency Access Points 1 | . . . . . 1 . . . . . . . . . . Machine Index 1 | . . . . . . . . . . . . 1 . . . Terminal Index 2 | . . . . . . . . 1 . . . . . 1 . Scanalyzer Index 1 | . . . 1 . . . . . . . . . . . . Unreport Threat 2 | . . . . 2 . . . . . . . . . . . Locate Traps 5 | . 1 . 1 . 2 . . . . . . 1 . . . Hauler Manifests 1 | . . . . . 1 . . . . . . . . . . Registered Prototypes 2 | . . . . . 1 . . . . . . 1 . . . Zone Layout 7 | . 1 1 2 . . . . . . . . 1 2 . . Fabricator Hacks 2 | . . . . 2 . . . . . . . . . . . Load Schematic 1 | . . . . 1 . . . . . . . . . . . Build 1 | . . . . 1 . . . . . . . . . . . Repair Station Hacks 5 | . . . . . 1 . . . . . . . 3 1 . Scan Component 2 | . . . . . . . . . . . . . 2 . . Repair 1 | . . . . . . . . . . . . . 1 . . Refit 2 | . . . . . 1 . . . . . . . . 1 . Recycling Unit Hacks 5 | . . 2 . . . 3 . . . . . . . . . Report Inventory 4 | . . 1 . . . 3 . . . . . . . . . Retrieve Components 1 | . . 1 . . . . . . . . . . . . . Scanalyzer 13 | . . . 4 2 . . . 3 . . . 1 3 . . Insert Component 4 | . . . 1 . . . . 1 . . . . 2 . . Analyze 4 | . . . 1 . . . . 2 . . . . 1 . . Retrieve Study 5 | . . . 2 2 . . . . . . . 1 . . . Garrison Access Hacks 1 | . . . . . . . . . . . . . 1 . . Seal Access 1 | . . . . . . . . . . . . . 1 . . Unauthorized Hacks 13 | . 1 . 1 . 2 8 . . . . . . 1 . . Terminals 9 | . 1 . 1 . 1 5 . . . . . . 1 . . Botnet 4 | . . . 1 . . 2 . . . . . . 1 . . Disrupt 2 | . 1 . . . 1 . . . . . . . . . . Skim 3 | . . . . . . 3 . . . . . . . . . Fabricators . | . . . . . . . . . . . . . . . . Repair Stations 1 | . . . . . 1 . . . . . . . . . . Patch 1 | . . . . . 1 . . . . . . . . . . Recycling Units 3 | . . . . . . 3 . . . . . . . . . Tunnel 3 | . . . . . . 3 . . . . . . . . . Scanalyzers . | . . . . . . . . . . . . . . . . Garrison Access . | . . . . . . . . . . . . . . . . Data Cores Recovered 1 | . . . . 1 . . . . . . . . . . . Used 1 | . . . . 1 . . . . . . . . . . . Hacking Detections 40 | . 2 3 5 5 4 3 . 2 . . . 3 9 3 1 Full Trace Events 8 | . . 1 1 2 2 . . 1 . . . . 1 . . Feedback Events 1 | . . . . . . . . . . . . . 1 . . Hackware Fried 1 | . . . . . . . . . . . . . 1 . . Feedback Blocked . | . . . . . . . . . . . . . . . . Robot Schematics Acquired 1 | . . . . . . . . . . . . . 1 . . Robots Built . | . . . . . . . . . . . . . . . . Authchips . | . . . . . . . . . . . . . . . . Time . | . . . . . . . . . . . . . . . . Total Robot Build Rating . | . . . . . . . . . . . . . . . . Part Schematics Acquired 16 | . 1 . 2 . 4 2 . . . . . 1 6 . . Parts Built 1 | . . . . 1 . . . . . . . . . . . Authchips . | . . . . . . . . . . . . . . . . Time 36 | . . . . 36 . . . . . . . . . . . Total Part Build Rating 3 | . . . . 3 . . . . . . . . . . . Part Studies Acquired 5 | . . . 2 2 . . . . . . . 1 . . . Parts Repaired 1 | . . . . . . . . . . . . . 1 . . Time 31 | . . . . . . . . . . . . . 31 . . Parts Recycled . | . . . . . . . . . . . . . . . . Recycled Matter . | . . . . . . . . . . . . . . . . Retrieved Matter . | . . . . . . . . . . . . . . . . Retrieved Components 3 | . . 3 . . . . . . . . . . . . . Parts Scanalyzed 3 | . . . 1 . . . . 1 . . . . 1 . . Part Schematics Acquired 2 | . . . 1 . . . . . . . . . 1 . . Parts Damaged 1 | . . . . . . . . . . . . . 1 . . Bothacking | -11 -10 -9 -8 -7 -7 -7 -7 -5 -4 -4 -4 -3 -3 -2 -1 ------------ Run | Yrd Mat Mat Mat Fac Sto Rec Scr Fac Fac Upp Upp Res Qua Res Acc Used RIF Installer . | . . . . . . . . . . . . . . . . Robots Hacked 1 | . . . . . . . 1 . . . . . . . . Non-combat . | . . . . . . . . . . . . . . . . Combat 1 | . . . . . . . 1 . . . . . . . . Robot Hacks Applied 1 | . . . . . . . 1 . . . . . . . . parse_system 1 | . . . . . . . 1 . . . . . . . . Relay Couplers Released . | . . . . . . . . . . . . . . . . Fabnet Peak Effective % . | . . . . . . . . . . . . . . . . Robots Rewired 3 | . . . . 3 . . . . . . . . . . . Allies Hacked . | . . . . . . . . . . . . . . . . Hacks Repelled . | . . . . . . . . . . . . . . . . Allies | -11 -10 -9 -8 -7 -7 -7 -7 -5 -4 -4 -4 -3 -3 -2 -1 -------- Run | Yrd Mat Mat Mat Fac Sto Rec Scr Fac Fac Upp Upp Res Qua Res Acc Total Allies 8 | . . . . 3 . . 5 . . . . . . . . Largest Group 5 | . . . . 3 . . 5 . . . . . . . . Highest-Rated Group 235 | . . . . 64 . . 235 . . . . . . . . Highest-Rated Ally 47 | . . . . 32 . . 47 . . . . . . . . Total Orders 2 | . . . . . . . . . . . . . 2 . . EXPLORE 2 | . . . . . . . . . . . . . 2 . . Ally Attacks 76 | . . . . 15 . . 61 . . . . . . . . Total Damage 1335 | . . . . 225 . . 1110 . . . . . . . . Kills 10 | . . . . 2 . . 8 . . . . . . . . Allies Corrupted . | . . . . . . . . . . . . . . . . Allies Melted 4 | . . . . . . . 4 . . . . . . . . Intel | -11 -10 -9 -8 -7 -7 -7 -7 -5 -4 -4 -4 -3 -3 -2 -1 ------- Run | Yrd Mat Mat Mat Fac Sto Rec Scr Fac Fac Upp Upp Res Qua Res Acc Active Infowar (turns) 2603 | . 122 182 217 249 207 . . 126 21 201 43 222 384 249 380 Sensors 598 | . . . 91 249 207 . . . . . . . . . 51 IFF 950 | . . . . . . . . . . . . 2 378 190 380 Terrain 689 | . . . . 163 193 . . . . . . . . . 333 Structural 334 | . . . . . . . . . . . . . . . 334 Seismic 905 | . 122 182 126 . . . . 126 21 201 43 84 . . . Machine Analysis 1566 | . . . . . . . . 66 21 201 43 222 384 249 380 Robot Analysis Total 7 | . . . . . . 1 6 . . . . . . . . Derelict Logs Recovered 2 | . . . . . . . . . . 1 1 . . . . Drone Launches 2 | . . . . . . . . . . . . . 2 . . Drone Recoveries . | . . . . . . . . . . . . . . . . Exploration | -11 -10 -9 -8 -7 -7 -7 -7 -5 -4 -4 -4 -3 -3 -2 -1 ------------- Run | Yrd Mat Mat Mat Fac Sto Rec Scr Fac Fac Upp Upp Res Qua Res Acc Turns Passed 4735 | 84 133 182 217 249 410 103 1729 128 21 201 43 222 384 249 380 Spaces Moved 7271 | 65 94 242 445 481 609 293 2569 221 57 421 101 351 519 342 461 Core 3 | 2 . 1 . . . . . . . . . . . . . Treads 4 | . . . . . . . . . . . . . . . 4 Legs . | . . . . . . . . . . . . . . . . Wheels 205 | 63 94 48 . . . . . . . . . . . . . Hover 1559 | . . . . . . . . 181 57 421 101 10 . 332 457 Flight 5500 | . . 193 445 481 609 293 2569 40 . . . 341 519 10 . Fastest Speed 28 | 50 100 32 29 29 29 29 29 28 28 36 32 40 40 32 36 Average Speed 36 | 98 100 47 29 29 29 29 30 32 34 36 33 43 43 45 52 Slowest Speed 200 | 100 100 200 29 35 29 29 109 120 36 40 40 129 44 76 160 Overloaded Moves 5 | . . . . . . . . . . . . . . . 5 Propulsion Burnouts . | . . . . . . . . . . . . . . . . Robots Hopped 14 | . . 5 3 . 1 1 1 . . . . . 3 . . Potential Cave-ins 4 | . . . . . . . 2 . . . . . . 2 . Cave-ins Triggered . | . . . . . . . . . . . . . . . . Exploration Rate (%) 31 | 3 23 37 49 11 56 71 85 7 2 64 16 9 52 7 11 Regions Visited 15 Branch Regions 6 Pre-discovered Areas 4 | . . . . . . 3 1 . . . . . . . . Known Exits Taken 10 | . . . 1 1 1 1 1 . . 1 1 1 1 1 . Unknown Exits Taken 5 | 1 1 1 . . . . . 1 1 . . . . . . Scrap Searched 7 | . . . . . . . 6 . . 1 . . . . . Spaces Dug 72 | . . . 5 . 3 . 4 2 . . 2 13 17 20 6 Terrain Destroyed 68 | . . 6 5 . 3 . 4 2 . 1 2 13 11 15 6 Melee 45 | . . . 5 . 3 . . 2 . . . 13 8 8 6 Projectile 1 | . . . . . . . . . . 1 . . . . . AOE 6 | . . 6 . . . . . . . . . . . . . Terrain Rammed . | . . . . . . . . . . . . . . . . Walls Destroyed . | . . . . . . . . . . . . . . . . Machines Disabled . | . . . . . . . . . . . . . . . . Actions | -11 -10 -9 -8 -7 -7 -7 -7 -5 -4 -4 -4 -3 -3 -2 -1 --------- Run | Yrd Mat Mat Mat Fac Sto Rec Scr Fac Fac Upp Upp Res Qua Res Acc Total 8999 | 76 116 289 495 555 780 305 3504 249 57 453 107 389 649 419 556 Wait 1293 | 2 12 23 9 35 120 10 882 2 . 17 . 16 88 37 40 Move 7234 | 64 93 232 441 480 606 290 2566 220 56 420 101 350 513 342 460 Hop 10 | . . 4 . . 1 1 1 . . . . . 3 . . Pick Up 38 | 1 1 4 5 1 3 1 10 3 . . 1 1 5 . 2 Fast Attach 96 | 6 1 7 6 5 7 . 10 5 1 4 3 4 7 15 15 Attach 23 | . . 2 2 1 1 . 6 1 . 2 . 1 3 2 2 Detach 3 | . . . . . . . . . . 1 . . . 2 . Swap 17 | . . 1 3 . 2 . 2 2 . . 2 . 4 . 1 Drop 82 | . . 8 10 3 9 1 19 3 . . . . 10 10 9 Fire 28 | 3 9 7 . . 1 . 2 . . 3 . . 2 1 . Melee 157 | . . 1 19 15 30 2 6 13 . 6 . 17 13 8 27 Ram 2 | . . . . . . . . . . . . . . 2 . Kick . | . . . . . . . . . . . . . . . . Crush . | . . . . . . . . . . . . . . . . Escape Stasis . | . . . . . . . . . . . . . . . . Rewire 15 | . . . . 15 . . . . . . . . . . . Trap . | . . . . . . . . . . . . . . . . Miscellaneous 1 | . . . . . . . . . . . . . 1 . . Route ------- -11/Scrapyard -10/Materials -9/Materials (discovered 2 exits: *Mat / [*Min]) -8/Materials (discovered 3 exits: *Fac x3) -7/Factory (discovered 3 exits: *Sto / Low x2) -7/Storage -7/Recycling -7/Scraptown (discovered 2 exits: *Fac x2) -5/Factory (discovered 2 exits: [*Fac x2]) -4/Factory -4/Upper Caves -4/Upper Caves (discovered 2 exits: *Res / Zhi) -3/Research (discovered 3 exits: Arm / *Qua x2) -3/Quarantine -2/Research -1/Access Tau Ceti IV Orbit History --------- Turn | Location | Event 16 | -11/Scrapyard | Discovered new exit (range 16) 85 | -11/Scrapyard | Entered Materials 133 | -10/Materials | Central database locked down 133 | -10/Materials | Discovered new exit (range 20) 218 | -10/Materials | Entered another Materials area 218 | -9/Materials | Evolved 2 slots: Utility x2 366 | -9/Materials | Discovered new exit (range 7) 396 | -9/Materials | Discovered new exit (range 16) 400 | -9/Materials | Entered another Materials area 400 | -8/Materials | Evolved 2 slots: Propulsion x1, Utility x1 454 | -8/Materials | Discovered new exit (range 10) 457 | -8/Materials | Identified exit to Factory 535 | -8/Materials | Discovered exit to Factory (range 10) 604 | -8/Materials | Discovered exit to Factory (range 16) 617 | -8/Materials | Entered Factory 617 | -7/Factory | Evolved 2 slots: Utility x2 705 | -7/Factory | Identified exit to Storage 705 | -7/Factory | Identified exit to Lower Caves 815 | -7/Factory | Lost 3 allies 820 | -7/Factory | Fabricated Hacking Suite? 866 | -7/Factory | Entered Storage 872 | -7/Storage | Found Prototype Launcher 872 | -7/Storage | Identified Rocket Array 1028 | -7/Storage | Build established: Hacker-Scout 1242 | -7/Storage | Identified exit to Recycling 1275 | -7/Storage | Used back door to open Recycling access 1276 | -7/Storage | Entered Recycling 1359 | -7/Recycling | Build established: Hacker-Sprinter 1372 | -7/Recycling | Scanned before Scraplab entrance 1376 | -7/Recycling | Entered Scraplab 1378 | -7/Recycling | Discovered new exit (range 2) 1378 | -7/Recycling | Identified exit to Scraptown 1379 | -7/Recycling | Entered Scraptown 1381 | -7/Scraptown | System corruption cleaned by C-Scrubber 1419 | -7/Scraptown | Visited Cyclists 1422 | -7/Scraptown | Visited Cave Peace 1427 | -7/Scraptown | Visited Comm Corps 1433 | -7/Scraptown | Visited SPCMW 1436 | -7/Scraptown | Visited The Evicted 1442 | -7/Scraptown | Visited Assassins FH 1447 | -7/Scraptown | Visited UFD Registry 1447 | -7/Scraptown | Registered with UFD as "Kinetiface" 1453 | -7/Scraptown | Visited DA-N13 Charitable Foundation 1455 | -7/Scraptown | Found DCF Scrap (28 items) 1460 | -7/Scraptown | Visited Scrapoid Pod Storage 1468 | -7/Scraptown | Visited Observation Area 1474 | -7/Scraptown | Visited Analyses Database 1480 | -7/Scraptown | Visited Scrap Suit Storage 1483 | -7/Scraptown | Visited Science Testing Area 1487 | -7/Scraptown | Visited Junk Repository 1502 | -7/Scraptown | Visited LU-1G1's Boring Crew 1588 | -7/Scraptown | Heard Great Nut preacher, LISTEN AND RECITE! 1613 | -7/Scraptown | Discovered new exit (range 13) 1642 | -7/Scraptown | Visited TADAMA 1841 | -7/Scraptown | Found Scrapoid Pod 2272 | -7/Scraptown | Scrapoid Pod released 07S05-D (x5) 2477 | -7/Scraptown | Met Optimus 2477 | -7/Scraptown | Accepted into 0bPrime 2877 | -7/Scraptown | Civil war broke out across Scraptown 2877 | -7/Scraptown | Attached CPS modules to Optimus. 2887 | -7/Scraptown | Found Prototype Special Weapon 2949 | -7/Scraptown | Found Prototype Special Weapon 2960 | -7/Scraptown | Lost 3 allies 2974 | -7/Scraptown | Identified exit to Factory 3061 | -7/Scraptown | Attacked by Scraptown defenders 3065 | -7/Scraptown | Optimus destroyed in the chaos of civil war 3087 | -7/Scraptown | Identified LU-1G1's Laser Shovel 3108 | -7/Scraptown | Entered Factory 3108 | -5/Factory | Evolved 4 slots: Power x1, Propulsion x2, Utility x1 3110 | -5/Factory | Lost 3 allies 3225 | -5/Factory | Discovered new exit (range 16) 3236 | -5/Factory | Discovered new exit (range 16) 3236 | -5/Factory | Entered another Factory area 3236 | -4/Factory | Evolved 2 slots: Propulsion x1, Utility x1 3253 | -4/Factory | Discovered new exit (range 9) 3257 | -4/Factory | Entered Upper Caves 3314 | -4/Upper Caves | Lost 4 parts (2p1u1w) 3315 | -4/Upper Caves | Spotted B-86 Titan 3450 | -4/Upper Caves | Discovered new exit (range 2) 3450 | -4/Upper Caves | Identified exit to Upper Caves 3458 | -4/Upper Caves | Entered another Upper Caves area 3461 | -4/Upper Caves | Identified exit to Zhirov 3479 | -4/Upper Caves | Attracted the attention of an 0b10 outpost 3487 | -4/Upper Caves | Discovered new exit (range 11) 3499 | -4/Upper Caves | Identified exit to Research 3501 | -4/Upper Caves | Entered Research 3501 | -3/Research | Evolved 2 slots: Utility x1, Weapon x1 3531 | -3/Research | Lost 4 parts (2n2u) 3608 | -3/Research | Spotted B-86 Titan 3707 | -3/Research | Identified exit to Armory 3707 | -3/Research | Identified exit to Quarantine 3723 | -3/Research | Entered Quarantine 3744 | -3/Quarantine | Build established: Derelict-Mutant 3770 | -3/Quarantine | Repaired Field Propulsion Array+ 3815 | -3/Quarantine | Cryocooling Duct disabled 3821 | -3/Quarantine | Cryocooling Duct disabled 3830 | -3/Quarantine | Ambient heat levels rising (+20) 3830 | -3/Quarantine | Non-combat units ordered to evacuate 3836 | -3/Quarantine | Ambient heat levels rising (+20) 3836 | -3/Quarantine | Combat units ordered to evacuate 3874 | -3/Quarantine | Identified exit to Research 3890 | -3/Quarantine | Met incapacitated Sigix Warrior 3890 | -3/Quarantine | Lockdown squad dispatched 3892 | -3/Quarantine | Acquired the access code to the Sigix quarantine chamber 3893 | -3/Quarantine | Unlocked Sigix quarantine chamber 3895 | -3/Quarantine | Found Sigix Containment Pod 3913 | -3/Quarantine | Found Adv. Powered Armor 3928 | -3/Quarantine | Found Alien Artifact 3936 | -3/Quarantine | Quarantine Guard activated 3938 | -3/Quarantine | Identified Core Reset Matrix 3938 | -3/Quarantine | Used Core Reset Matrix 3939 | -3/Quarantine | Central database locked down 3942 | -3/Quarantine | Sensed 9 artifacts in vicinity 3984 | -3/Quarantine | Hacking Suite fried by hacking feedback 3996 | -3/Quarantine | Spotted Quarantine Guard 3999 | -3/Quarantine | Spotted Quarantine Guard 4002 | -3/Quarantine | Spotted Quarantine Guard 4025 | -3/Quarantine | Spotted Lightning 4035 | -3/Quarantine | Spotted Quarantine Guard 4062 | -3/Quarantine | Spotted Quarantine Guard 4066 | -3/Quarantine | Spotted Quarantine Guard 4089 | -3/Quarantine | Identified Exp. Plasma Cutter 4091 | -3/Quarantine | Found Subatomic Replicator 4105 | -3/Quarantine | Discovered exit to Research (range 3) 4105 | -3/Quarantine | Spotted Quarantine Guard 4105 | -3/Quarantine | Spotted Quarantine Guard 4107 | -3/Quarantine | Entered Research 4107 | -2/Research | Evolved 2 slots: Utility x2 4189 | -2/Research | Spotted B-90 Cyclops 4252 | -2/Research | Found Unknown Device 4252 | -2/Research | Identified Launcher Loader 4343 | -2/Research | Discovered new exit (range 12) 4353 | -2/Research | Identified exit to Access 4356 | -2/Research | Entered Access 4356 | -1/Access | Evolved 2 slots: Utility x2 4373 | -1/Access | Build established: Hacker-Mutant 4386 | -1/Access | Lost 3 parts (1n1u1w) 4727 | -1/Access | Discovered new exit (range 6) 4729 | -1/Access | Identified exit to Surface 4730 | -1/Access | Used Subatomic Replicator to replicate Sigix Containment Pod 4736 | *** | Destroyed 0b10! Last Messages --------------- 04685_ Acquired Unknown Device. 04685_ Identified Adv. Sensor Array. 04695_ >> Machine Analyzer network decryption results: 04695_ Repair Station x1 04704_ Connecting with Repair Station... 04717_ K-01 Serf cleans the Terminal. 04718_ >> Machine Analyzer network decryption results: 04718_ Scanalyzer x1 04725_ Connecting with Terminal... >>Open(Door) Sealed Barrier opened. 04727_ The Access Shell folds into the floor. 04727_ EXIT=FOUND 04729_ EXIT=IDENTIFIED: SURFACE 04729_ Dropped Sigix Containment Pod. 04730_ Replicated Sigix Containment Pod. 04731_ Sigix Containment Pod: "Completely unsanctioned use of that technology." 04731_ Sigix Containment Pod: "I agree." 04731_ Acquired Sigix Containment Pod. Map ----- +----------------------------------------------------+ | ?????????????????????????????????????????????????? | | ?????????????????????????????????????????????????? | | ?????????????????????????????????????????????????? | | ?????????????????????????????????????????????????? | | ?????????????????????????????????????????????????? | | ?????????????????????????????????????????????????? | | ?????????????????????????????????????????????????? | | ?????????????????????????????????????????????????? | | ?????????????????????????????????????????????????? | | ?????????????????????????????????????????????????? | | ?????????????????????????????????????????????????? | | ?????????????????????????????????????????????????? | | ?????????????????????????????????????????????????? | | ?????????????????????????????????????????????????? | | ?????????????????????BB????BB????????????????????? | | ?????????????????????BB????BB????????????????????? | | ????????????????????????????? ???????????????????? | | ?????????????????????????????????????????????????? | | ??????????????????????????????##?????????????????? | | ??????????????????##"????????"##???############??? | | ??????????????????##""""""""""##???############??? | | ??????????????????## ##???## ##??? | | ??????????????????## ##???## ##??? | | ??????????????????## ##???## ##??# | | ?????????????#????## "" ##?#?##! ##??# | | ????????????##????## "@ ##?#### ##?## | | ??????????????????## ##?#### ##??# | | ??????????????????## ####?## ##??# | | ?????????????????### ####?## ##### | | ?????????????????### ###??## ##### | | ?????????????????## ##?########+### | | ?????????????????###"" ###?### " | | ????????????#????###"" ###??## | | ??????????????????##"" ##???## ####### | | ??????????????????##T ##???## ######## # | | ??????????????????##"" ##???## ##???### # | | ??????????????????##"" ####### ##????## # | | ????????????????#?##"" ####### ##????## # | | ?????????????? k ####??## # | | ????????????? ##????## | | ?????????????######################+#####????## | | ?????????????#################### ????## # | | ??????????????#???????????#?#????? ????????## # | | ??????????????????????????????#?? ?? ????## # | | ???????????????????????????????## "??????## # | | ?????????????????????? ????????## """"?????## # | | ????????????????????????#??????## """""??????? # | | ???????????????????????#???????## """""?????? ? | | ???????????????????????????????## """"?????????? | | ???????????????????????????????## "?? ????????? | +----------------------------------------------------+ Best States ------------- Heat Dissipation 52 Coolant Potential 100 Energy Generation 65 Energy Capacity 360 Matter Stores 300 Matter Capacity 300 Sight Range 16 Robot Scan Range 16 Terrain Scan Range 16 Terrain Scan Density 85 Power Amplification 90 Corruption Containment 12 Corruption Block 20 Armor Coverage 225 Propulsion Shielding 66 Utility Shielding 66 Weapon Cycling 25 Evasion (%) 72 Melee Accuracy 6 Armor Integrity Analysis 30 Recoil Reduction 2 Offensive Hacking 63 Defensive Hacking 10 Authchip Count 1 Item Schematics ----------------- CPS Tube | -3/Quarantine | Scanalyzed Gravity Neutralizer | -3/Quarantine | Archive Imp. Diametric Drive | -3/Quarantine | Archive Exp. Myomer Leg | -3/Quarantine | Archive Enh. Hardcell Cannon | -3/Quarantine | Hacked Robot Schematics ------------------ A-27 Freighter | -3/Quarantine | Archive Fabricated ------------ Hacking Suite | x1 | -7/Factory Repaired ---------- Field Propulsion Array | 57% | -3/Quarantine Studied --------- None Alien Tech Used ----------------- Core Reset Matrix Subatomic Replicator Achievements -------------- None Challenges ------------ None Game ------ Seed MeleeCompanionMaul Manual? 0 Play Time 01:49:10 Cumulative 1045.5 hours Start 2025.11.07 @ 10:17:41 End 2025.11.07 @ 12:07:34 Sessions 1 Manual Loads 0 Difficulty Rogue Special Mode None Game No. 378 Rogue 373 Adventurer 4 Explorer 1 Win Type 3 Total 22 Types 13/3/1/2/0/1/0/0/1/1 Lore% 96 Gallery% 94 Achievement% 79 Wizard Run 0 Options --------- Layout 0 ASCII 0 Keyboard 0 Movement Numpad Keybinds 0 Fullscreen 2 Font 18/SmallcapsGlow Map View 76x50 Zoom Use 0% Tactical HUD 1 Map Filters NONE Filters NONE Steam 1 RUN: 0c811081-04d0-4e75-961b-a046d22681b7